[Event "Late-Titled-Tuesday-Blitz-January-30-2024"]
[Site "Chess.com"]
[Date "2024.01.30"]
[Round "1"]
[White "MikaelyanArman"]
[Black "tusplingher"]
[Result "1-0"]
[WhiteElo "2862"]
[BlackElo "2487"]
[TimeControl "180+1"]
[EndTime "14:08:45 PST"]
[Termination "MikaelyanArman won by resignation"]

1. d4 {[%clk 0:03:00.9]} 1... Nf6 {[%clk 0:02:59.8]} 2. c4 {[%clk 0:03:00.6]}
2... e6 {[%clk 0:03:00.2]} 3. Nf3 {[%clk 0:03:00.8]} 3... Bb4+ {[%clk
0:02:59.9]} 4. Nbd2 {[%clk 0:02:58.6]} 4... b6 {[%clk 0:02:59.8]} 5. g3 {[%clk
0:02:56.3]} 5... Bb7 {[%clk 0:02:59.1]} 6. Bg2 {[%clk 0:02:56.3]} 6... O-O
{[%clk 0:02:58]} 7. O-O {[%clk 0:02:56.1]} 7... Bxd2 {[%clk 0:02:53.7]} 8. Qxd2
{[%clk 0:02:54.5]} 8... Ne4 {[%clk 0:02:54]} 9. Qc2 {[%clk 0:02:54.3]} 9... f5
{[%clk 0:02:52.3]} 10. Ng5 {[%clk 0:02:23.8]} 10... Nd6 {[%clk 0:02:39]} 11.
Bxb7 {[%clk 0:01:51.2]} 11... Nxb7 {[%clk 0:02:38.9]} 12. d5 {[%clk 0:01:43.5]}
12... h6 {[%clk 0:02:33.8]} 13. Nf3 {[%clk 0:01:42.1]} 13... Nd6 {[%clk
0:02:29.7]} 14. Bf4 {[%clk 0:01:38.5]} 14... Na6 {[%clk 0:02:16.6]} 15. Rad1
{[%clk 0:01:33.7]} 15... Qe7 {[%clk 0:02:12.8]} 16. Ne5 {[%clk 0:01:28.3]} 16...
Rf6 {[%clk 0:01:49]} 17. Nd3 {[%clk 0:01:15.3]} 17... Ne4 {[%clk 0:01:38.8]} 18.
Be5 {[%clk 0:01:06.2]} 18... Rff8 {[%clk 0:01:33.9]} 19. dxe6 {[%clk 0:01:06.5]}
19... dxe6 {[%clk 0:01:26.4]} 20. Nf4 {[%clk 0:01:02.5]} 20... Rfd8 {[%clk
0:01:23.1]} 21. Nd3 {[%clk 0:00:40.8]} 21... Nac5 {[%clk 0:01:16.7]} 22. b4
{[%clk 0:00:38.8]} 22... Nxd3 {[%clk 0:01:01.2]} 23. exd3 {[%clk 0:00:39.7]}
23... Ng5 {[%clk 0:01:00.8]} 24. f4 {[%clk 0:00:36.1]} 24... Nf7 {[%clk
0:00:59.9]} 25. Bc3 {[%clk 0:00:35.9]} 25... Qd7 {[%clk 0:00:54.6]} 26. Rfe1
{[%clk 0:00:35.5]} 26... Re8 {[%clk 0:00:46.9]} 27. Re3 {[%clk 0:00:34.7]} 27...
Rad8 {[%clk 0:00:45.9]} 28. Rde1 {[%clk 0:00:35.2]} 28... g5 {[%clk 0:00:35.8]}
29. Qe2 {[%clk 0:00:34.5]} 29... gxf4 {[%clk 0:00:30.4]} 30. gxf4 {[%clk
0:00:35.4]} 30... Kh7 {[%clk 0:00:27.8]} 31. Rg3 {[%clk 0:00:35.6]} 31... Rg8
{[%clk 0:00:26.8]} 32. Bf6 {[%clk 0:00:31]} 32... Rxg3+ {[%clk 0:00:22.5]} 33.
hxg3 {[%clk 0:00:31.9]} 33... Qxd3 {[%clk 0:00:20.2]} 34. Bxd8 {[%clk
0:00:28.2]} 34... Qxg3+ {[%clk 0:00:20.3]} 35. Kf1 {[%clk 0:00:28.7]} 35...
Qxf4+ {[%clk 0:00:19.6]} 36. Kg2 {[%clk 0:00:29.1]} 36... Nxd8 {[%clk 0:00:18]}
37. Qh5 {[%clk 0:00:24.5]} 37... Qd2+ {[%clk 0:00:10.2]} 38. Re2 {[%clk
0:00:24]} 38... Qd6 {[%clk 0:00:10.3]} 39. Qe8 {[%clk 0:00:20.4]} 39... Qc6+
{[%clk 0:00:10.1]} 40. Qxc6 {[%clk 0:00:19.9]} 40... Nxc6 {[%clk 0:00:11]} 41.
Rxe6 {[%clk 0:00:19.1]} 41... Nxb4 {[%clk 0:00:11.3]} 42. Re7+ {[%clk
0:00:19.5]} 42... Kg6 {[%clk 0:00:11.5]} 43. Rxc7 {[%clk 0:00:20.4]} 43... Nxa2
{[%clk 0:00:11.8]} 44. Rxa7 {[%clk 0:00:19.1]} 44... Nc3 {[%clk 0:00:12.3]} 45.
Ra6 {[%clk 0:00:18.3]} 45... Kf6 {[%clk 0:00:11.4]} 46. Rxb6+ {[%clk 0:00:18.5]}
46... Ke5 {[%clk 0:00:12]} 47. Rb3 {[%clk 0:00:13.9]} 47... Ne4 {[%clk
0:00:09.9]} 48. Rd3 {[%clk 0:00:13.4]} 48... f4 {[%clk 0:00:04.9]} 49. Kf3
{[%clk 0:00:10.8]} 49... Ng5+ {[%clk 0:00:05.4]} 50. Ke2 {[%clk 0:00:10.6]}
50... Ne6 {[%clk 0:00:05.5]} 51. Rd7 {[%clk 0:00:08.9]} 51... h5 {[%clk
0:00:04.5]} 52. Rd5+ {[%clk 0:00:07.8]} 52... Ke4 {[%clk 0:00:04.4]} 53. Rd6
{[%clk 0:00:07.8]} 53... Ke5 {[%clk 0:00:04.3]} 54. Rd7 {[%clk 0:00:05.9]} 54...
h4 {[%clk 0:00:04.2]} 55. Rh7 {[%clk 0:00:05.4]} 55... f3+ {[%clk 0:00:01.8]}
56. Kf2 {[%clk 0:00:04.9]} 56... Ng5 {[%clk 0:00:01.3]} 57. Rxh4 {[%clk
0:00:04.2]} 57... Ne4+ {[%clk 0:00:01.7]} 58. Kxf3 {[%clk 0:00:04.1]} 58... Ng5+
{[%clk 0:00:01.8]} 59. Ke3 {[%clk 0:00:04.4]} 59... Ne6 {[%clk 0:00:02.3]} 60.
Rh5+ {[%clk 0:00:04.4]} 60... Kd6 {[%clk 0:00:02.8]} 61. Rf5 {[%clk 0:00:03.8]}
61... Nc7 {[%clk 0:00:02.4]} 62. Kd4 {[%clk 0:00:03.9]} 62... Ne6+ {[%clk
0:00:02.8]} 63. Kc3 {[%clk 0:00:04.4]} 63... Nc5 {[%clk 0:00:03.3]} 64. Rf6+
{[%clk 0:00:04.6]} 64... Kc7 {[%clk 0:00:03.4]} 65. Rf1 {[%clk 0:00:05.1]} 65...
Ne4+ {[%clk 0:00:03.7]} 66. Kd4 {[%clk 0:00:05.2]} 66... Nd6 {[%clk 0:00:04.1]}
67. c5 {[%clk 0:00:04.9]} 67... Nb5+ {[%clk 0:00:04.1]} 68. Kc4 {[%clk
0:00:05.4]} 68... Na3+ {[%clk 0:00:04.6]} 69. Kd5 {[%clk 0:00:05.8]} 69... Nb5
{[%clk 0:00:04.5]} 70. Rf7+ {[%clk 0:00:06]} 70... Kd8 {[%clk 0:00:04.9]} 71.
Rh7 {[%clk 0:00:06.9]} 71... Nc7+ {[%clk 0:00:05.3]} 72. Kc6 {[%clk 0:00:06.3]}
72... Ne6 {[%clk 0:00:05.9]} 73. Kd6 {[%clk 0:00:06.2]} 73... Nf8 {[%clk
0:00:05.8]} 74. Rh8 {[%clk 0:00:06.8]} 74... Ke8 {[%clk 0:00:06.4]} 75. c6
{[%clk 0:00:07.3]} 75... Kf7 {[%clk 0:00:06.8]} 76. Rxf8+ {[%clk 0:00:07.9]}
76... Kxf8 {[%clk 0:00:07.4]} 77. c7 {[%clk 0:00:08.8]} 1-0

[Event "Late-Titled-Tuesday-Blitz-January-30-2024"]
[Site "Chess.com"]
[Date "2024.01.30"]
[Round "1"]
[White "kaanadayhamle"]
[Black "farzadbfd"]
[Result "1/2-1/2"]
[WhiteElo "2394"]
[BlackElo "2678"]
[TimeControl "180+1"]
[EndTime "14:08:52 PST"]
[Termination "Game drawn - insufficient material"]

1. d4 {[%clk 0:02:55.3]} 1... Nf6 {[%clk 0:02:59.5]} 2. c4 {[%clk 0:02:55.3]}
2... e6 {[%clk 0:02:59.1]} 3. Nf3 {[%clk 0:02:56.1]} 3... d5 {[%clk 0:02:58.5]}
4. g3 {[%clk 0:02:56.8]} 4... Bb4+ {[%clk 0:02:57.6]} 5. Bd2 {[%clk 0:02:55.1]}
5... Bd6 {[%clk 0:02:57.5]} 6. Bg2 {[%clk 0:02:55.1]} 6... c6 {[%clk 0:02:58.1]}
7. b3 {[%clk 0:02:51.2]} 7... O-O {[%clk 0:02:58.1]} 8. O-O {[%clk 0:02:51.6]}
8... Ne4 {[%clk 0:02:58.4]} 9. Nc3 {[%clk 0:02:51.4]} 9... f5 {[%clk 0:02:59]}
10. Qc2 {[%clk 0:02:51.1]} 10... Nd7 {[%clk 0:02:55.2]} 11. Rfd1 {[%clk
0:02:41.7]} 11... Ndf6 {[%clk 0:02:42.5]} 12. h3 {[%clk 0:02:21.6]} 12... Nxc3
{[%clk 0:02:27.4]} 13. Bxc3 {[%clk 0:02:19.3]} 13... Ne4 {[%clk 0:02:27.9]} 14.
Nd2 {[%clk 0:02:16]} 14... Bd7 {[%clk 0:02:13.4]} 15. c5 {[%clk 0:01:55.9]}
15... Bc7 {[%clk 0:02:12.6]} 16. b4 {[%clk 0:01:52.3]} 16... a6 {[%clk
0:02:12.9]} 17. Rab1 {[%clk 0:01:50.9]} 17... g5 {[%clk 0:02:03.9]} 18. Nxe4
{[%clk 0:01:47.3]} 18... fxe4 {[%clk 0:02:01.6]} 19. Bd2 {[%clk 0:01:42.8]}
19... Be8 {[%clk 0:01:58.3]} 20. Qc1 {[%clk 0:01:37.7]} 20... Qf6 {[%clk
0:01:54.1]} 21. Rf1 {[%clk 0:01:34]} 21... Bd8 {[%clk 0:01:37.7]} 22. Be3 {[%clk
0:01:30.2]} 22... Bg6 {[%clk 0:01:35]} 23. a4 {[%clk 0:01:27]} 23... h6 {[%clk
0:01:30.4]} 24. b5 {[%clk 0:01:25.9]} 24... axb5 {[%clk 0:01:31.3]} 25. axb5
{[%clk 0:01:26.8]} 25... Bc7 {[%clk 0:01:20.2]} 26. bxc6 {[%clk 0:01:24.2]}
26... bxc6 {[%clk 0:01:21.1]} 27. Rb7 {[%clk 0:01:24]} 27... Rf7 {[%clk
0:01:21.5]} 28. Qb2 {[%clk 0:01:16.3]} 28... Raf8 {[%clk 0:01:18.4]} 29. Ra1
{[%clk 0:00:42.4]} 29... Bf4 {[%clk 0:00:44.3]} 30. Rxf7 {[%clk 0:00:18]} 30...
Bxf7 {[%clk 0:00:44.4]} 31. Qd2 {[%clk 0:00:10.1]} 31... Bxe3 {[%clk 0:00:37.3]}
32. Qxe3 {[%clk 0:00:11]} 32... e5 {[%clk 0:00:37.6]} 33. dxe5 {[%clk
0:00:11.6]} 33... Qxe5 {[%clk 0:00:38.5]} 34. Ra6 {[%clk 0:00:10.1]} 34... Be8
{[%clk 0:00:34.2]} 35. Rb6 {[%clk 0:00:09.4]} 35... h5 {[%clk 0:00:27.1]} 36. h4
{[%clk 0:00:08.3]} 36... gxh4 {[%clk 0:00:26.1]} 37. gxh4 {[%clk 0:00:09.2]}
37... Qf4 {[%clk 0:00:26.3]} 38. Qxf4 {[%clk 0:00:08.5]} 38... Rxf4 {[%clk
0:00:27.2]} 39. Rb8 {[%clk 0:00:07]} 39... Kf7 {[%clk 0:00:27]} 40. Rb7+ {[%clk
0:00:07.5]} 40... Kf8 {[%clk 0:00:27.1]} 41. Bh3 {[%clk 0:00:06.4]} 41... Rxh4
{[%clk 0:00:25.2]} 42. Be6 {[%clk 0:00:06.9]} 42... Rf4 {[%clk 0:00:20.5]} 43.
e3 {[%clk 0:00:07]} 43... Rf6 {[%clk 0:00:20.2]} 44. Bh3 {[%clk 0:00:07.6]}
44... Rf7 {[%clk 0:00:19.7]} 45. Rb8 {[%clk 0:00:07.6]} 45... Ra7 {[%clk
0:00:19.5]} 46. Kg2 {[%clk 0:00:07.2]} 46... Rg7+ {[%clk 0:00:18.7]} 47. Kh2
{[%clk 0:00:07.4]} 47... Ke7 {[%clk 0:00:12.7]} 48. Rb7+ {[%clk 0:00:05.5]}
48... Kf6 {[%clk 0:00:12.8]} 49. Rb8 {[%clk 0:00:04.8]} 49... Re7 {[%clk
0:00:08.3]} 50. Bf1 {[%clk 0:00:04.7]} 50... Ke5 {[%clk 0:00:08.8]} 51. Be2
{[%clk 0:00:04.7]} 51... d4 {[%clk 0:00:08.9]} 52. exd4+ {[%clk 0:00:05]} 52...
Kxd4 {[%clk 0:00:09.8]} 53. Rd8+ {[%clk 0:00:05.3]} 53... Kxc5 {[%clk
0:00:10.3]} 54. Kg3 {[%clk 0:00:05.2]} 54... Kb4 {[%clk 0:00:10.1]} 55. Kf4
{[%clk 0:00:05.4]} 55... c5 {[%clk 0:00:10.7]} 56. Ke3 {[%clk 0:00:05.6]} 56...
Kc3 {[%clk 0:00:11.1]} 57. Rc8 {[%clk 0:00:05.5]} 57... Re5 {[%clk 0:00:11.4]}
58. Kf4 {[%clk 0:00:05.7]} 58... Re7 {[%clk 0:00:03.7]} 59. Rxc5+ {[%clk
0:00:05.5]} 59... Kd2 {[%clk 0:00:04.3]} 60. Bxh5 {[%clk 0:00:05.3]} 60... Bxh5
{[%clk 0:00:03.3]} 61. Rxh5 {[%clk 0:00:06.2]} 61... Ke2 {[%clk 0:00:04.2]} 62.
Rh2 {[%clk 0:00:06.2]} 62... Kf1 {[%clk 0:00:03.2]} 63. Ke3 {[%clk 0:00:05.5]}
63... Kg1 {[%clk 0:00:02]} 64. Rh4 {[%clk 0:00:05.9]} 64... Re8 {[%clk
0:00:01.7]} 65. Rg4+ {[%clk 0:00:05.3]} 65... Kf1 {[%clk 0:00:02.3]} 66. Rf4
{[%clk 0:00:05.3]} 66... Kg2 {[%clk 0:00:02.7]} 67. Rf6 {[%clk 0:00:04.9]} 67...
Kg1 {[%clk 0:00:02.9]} 68. Rg6+ {[%clk 0:00:05.3]} 68... Kf1 {[%clk 0:00:03.4]}
69. Rg4 {[%clk 0:00:06]} 69... Re7 {[%clk 0:00:03.1]} 70. Rxe4 {[%clk
0:00:06.4]} 70... Rxe4+ {[%clk 0:00:03.3]} 71. Kxe4 {[%clk 0:00:07.3]} 71...
Kxf2 {[%clk 0:00:04.1]} 1/2-1/2

[Event "Late-Titled-Tuesday-Blitz-January-30-2024"]
[Site "Chess.com"]
[Date "2024.01.30"]
[Round "1"]
[White "Kombinator01"]
[Black "alexrustemov"]
[Result "1/2-1/2"]
[WhiteElo "2464"]
[BlackElo "2773"]
[TimeControl "180+1"]
[EndTime "14:08:55 PST"]
[Termination "Game drawn by repetition"]

1. d4 {[%clk 0:02:55.2]} 1... d5 {[%clk 0:02:57.7]} 2. Bf4 {[%clk 0:02:53.6]}
2... Nf6 {[%clk 0:02:57.3]} 3. e3 {[%clk 0:02:53.3]} 3... c5 {[%clk 0:02:58]} 4.
Nd2 {[%clk 0:02:52.9]} 4... Nc6 {[%clk 0:02:58.5]} 5. Ngf3 {[%clk 0:02:52]} 5...
Bg4 {[%clk 0:02:58.9]} 6. dxc5 {[%clk 0:02:51.5]} 6... e6 {[%clk 0:02:57.1]} 7.
Nb3 {[%clk 0:02:50.8]} 7... Bxc5 {[%clk 0:02:52]} 8. Nxc5 {[%clk 0:02:48]} 8...
Qa5+ {[%clk 0:02:52.4]} 9. c3 {[%clk 0:02:45.6]} 9... Qxc5 {[%clk 0:02:52.7]}
10. Be2 {[%clk 0:02:37.1]} 10... O-O {[%clk 0:02:52.2]} 11. h3 {[%clk
0:02:37.3]} 11... Bh5 {[%clk 0:02:51.4]} 12. O-O {[%clk 0:02:35.1]} 12... Ne4
{[%clk 0:02:49.2]} 13. Rc1 {[%clk 0:02:30]} 13... Rfd8 {[%clk 0:02:47.5]} 14.
Nd4 {[%clk 0:02:23.6]} 14... Bxe2 {[%clk 0:02:42.5]} 15. Qxe2 {[%clk 0:02:24.5]}
15... Qc4 {[%clk 0:02:31.4]} 16. Qc2 {[%clk 0:02:04.4]} 16... Rac8 {[%clk
0:02:24.8]} 17. f3 {[%clk 0:01:58]} 17... Nc5 {[%clk 0:02:19.7]} 18. Nxc6 {[%clk
0:01:51.1]} 18... Rxc6 {[%clk 0:02:15.8]} 19. b3 {[%clk 0:01:46.6]} 19... Qd3
{[%clk 0:02:10]} 20. Rfd1 {[%clk 0:01:40.2]} 20... Qxc2 {[%clk 0:02:08.4]} 21.
Rxc2 {[%clk 0:01:41.1]} 21... Rdc8 {[%clk 0:02:08.6]} 22. c4 {[%clk 0:01:38.1]}
22... dxc4 {[%clk 0:01:49.7]} 23. Rxc4 {[%clk 0:01:39]} 23... f6 {[%clk
0:01:45.7]} 24. b4 {[%clk 0:01:29.9]} 24... Na4 {[%clk 0:01:41.5]} 25. Rxc6
{[%clk 0:01:27.8]} 25... Rxc6 {[%clk 0:01:42]} 26. Rd7 {[%clk 0:01:28.4]} 26...
e5 {[%clk 0:01:40.5]} 27. Bg3 {[%clk 0:01:28.3]} 27... Rb6 {[%clk 0:01:22.3]}
28. Be1 {[%clk 0:01:21.4]} 28... h5 {[%clk 0:01:17.5]} 29. e4 {[%clk 0:01:21.6]}
29... Kh7 {[%clk 0:01:15.3]} 30. Kf2 {[%clk 0:01:04]} 30... Kg6 {[%clk 0:01:15]}
31. g4 {[%clk 0:01:01.8]} 31... hxg4 {[%clk 0:01:13.2]} 32. hxg4 {[%clk
0:01:02.1]} 32... Nb2 {[%clk 0:01:13.5]} 33. Kg3 {[%clk 0:00:55.1]} 33... Ra6
{[%clk 0:01:09.5]} 34. Rxb7 {[%clk 0:00:54.3]} 34... Rxa2 {[%clk 0:01:00.8]} 35.
Bf2 {[%clk 0:00:54.2]} 35... Nd3 {[%clk 0:00:56.6]} 36. Bxa7 {[%clk 0:00:50.8]}
36... Nf4 {[%clk 0:00:49.3]} 37. Bf2 {[%clk 0:00:47.7]} 37... Ne2+ {[%clk
0:00:49.4]} 38. Kg2 {[%clk 0:00:47.5]} 38... Rb2 {[%clk 0:00:46.5]} 39. b5
{[%clk 0:00:43.1]} 39... Nc3 {[%clk 0:00:46.5]} 40. Kg3 {[%clk 0:00:41.1]} 40...
Rxb5 {[%clk 0:00:36.2]} 41. Rxb5 {[%clk 0:00:39.7]} 41... Nxb5 {[%clk
0:00:37.1]} 42. Be3 {[%clk 0:00:37.3]} 42... Nc3 {[%clk 0:00:35.9]} 43. Bd2
{[%clk 0:00:33.7]} 43... Ne2+ {[%clk 0:00:36]} 44. Kf2 {[%clk 0:00:33.4]} 44...
Nd4 {[%clk 0:00:36.6]} 45. Be3 {[%clk 0:00:32.8]} 45... Ne6 {[%clk 0:00:36.8]}
46. Kg3 {[%clk 0:00:32.3]} 46... Kf7 {[%clk 0:00:36.8]} 47. f4 {[%clk
0:00:28.9]} 47... exf4+ {[%clk 0:00:32.3]} 48. Bxf4 {[%clk 0:00:29.8]} 48... g6
{[%clk 0:00:31.1]} 49. e5 {[%clk 0:00:24.3]} 49... f5 {[%clk 0:00:31.1]} 50.
gxf5 {[%clk 0:00:24.2]} 50... gxf5 {[%clk 0:00:32]} 51. Bc1 {[%clk 0:00:22.8]}
51... Ke7 {[%clk 0:00:31.9]} 52. Ba3+ {[%clk 0:00:22.6]} 52... Kd7 {[%clk
0:00:32.1]} 53. Kf3 {[%clk 0:00:20.5]} 53... Kc6 {[%clk 0:00:32.5]} 54. Bd6
{[%clk 0:00:20.7]} 54... Kd5 {[%clk 0:00:33.1]} 55. Bb8 {[%clk 0:00:20.6]} 55...
Nd4+ {[%clk 0:00:29.7]} 56. Kf4 {[%clk 0:00:19.1]} 56... Ke6 {[%clk 0:00:30.2]}
57. Bd6 {[%clk 0:00:18.2]} 57... Ne2+ {[%clk 0:00:30.4]} 58. Ke3 {[%clk
0:00:18.2]} 58... Nc3 {[%clk 0:00:30.4]} 59. Kf4 {[%clk 0:00:18.4]} 59... Nd5+
{[%clk 0:00:30.6]} 60. Kf3 {[%clk 0:00:18.5]} 60... Nb6 {[%clk 0:00:31.1]} 61.
Kf4 {[%clk 0:00:18.8]} 61... Nc4 {[%clk 0:00:31.5]} 62. Bb8 {[%clk 0:00:16.4]}
62... Nb2 {[%clk 0:00:32]} 63. Bd6 {[%clk 0:00:16.6]} 63... Nd3+ {[%clk
0:00:31.9]} 64. Kf3 {[%clk 0:00:16.5]} 64... Kd5 {[%clk 0:00:28.2]} 65. Bb8
{[%clk 0:00:15.8]} 65... Nb4 {[%clk 0:00:27.9]} 66. Bd6 {[%clk 0:00:15.9]} 66...
Nc6 {[%clk 0:00:27.3]} 67. Kf4 {[%clk 0:00:15.6]} 67... Ke6 {[%clk 0:00:27.3]}
68. Kf3 {[%clk 0:00:16]} 68... Na5 {[%clk 0:00:26.3]} 69. Kf4 {[%clk 0:00:15.5]}
69... Nc4 {[%clk 0:00:26.8]} 70. Kf3 {[%clk 0:00:14.2]} 70... Nd2+ {[%clk
0:00:25.6]} 71. Kf4 {[%clk 0:00:14.6]} 71... Ne4 {[%clk 0:00:25.7]} 72. Kf3
{[%clk 0:00:14.7]} 72... Nc3 {[%clk 0:00:25.7]} 73. Kf4 {[%clk 0:00:15.2]} 73...
Nd5+ {[%clk 0:00:26.6]} 74. Kf3 {[%clk 0:00:15.5]} 74... Kf7 {[%clk 0:00:27.1]}
75. Bb8 {[%clk 0:00:14.6]} 75... Ke7 {[%clk 0:00:27]} 76. Bd6+ {[%clk
0:00:15.5]} 76... Ke6 {[%clk 0:00:27.5]} 77. Bb8 {[%clk 0:00:16]} 77... Ne7
{[%clk 0:00:26.4]} 78. Bd6 {[%clk 0:00:16.9]} 78... Ng6 {[%clk 0:00:26.2]} 79.
Bb8 {[%clk 0:00:16.6]} 79... Nxe5+ {[%clk 0:00:26.3]} 80. Bxe5 {[%clk
0:00:16.3]} 80... Kxe5 {[%clk 0:00:27.2]} 81. Ke3 {[%clk 0:00:16.9]} 81... f4+
{[%clk 0:00:27.7]} 82. Kf3 {[%clk 0:00:17.2]} 82... Kf5 {[%clk 0:00:28.6]} 83.
Kf2 {[%clk 0:00:17.7]} 83... Ke4 {[%clk 0:00:29.3]} 84. Ke2 {[%clk 0:00:18]}
84... Kd4 {[%clk 0:00:29.6]} 85. Kf3 {[%clk 0:00:18.2]} 85... Ke5 {[%clk
0:00:30.5]} 86. Kf2 {[%clk 0:00:18.7]} 86... Kf5 {[%clk 0:00:31.4]} 87. Kf3
{[%clk 0:00:19.1]} 87... Kg5 {[%clk 0:00:31.7]} 88. Kf2 {[%clk 0:00:19.5]} 88...
Kg4 {[%clk 0:00:32.6]} 89. Kg2 {[%clk 0:00:19.9]} 89... Kf5 {[%clk 0:00:32.6]}
90. Kf3 {[%clk 0:00:20.2]} 90... Ke5 {[%clk 0:00:33.1]} 91. Kf2 {[%clk
0:00:20.5]} 91... Ke4 {[%clk 0:00:34]} 92. Ke2 {[%clk 0:00:20.9]} 92... f3+
{[%clk 0:00:34.7]} 93. Kf2 {[%clk 0:00:21.3]} 93... Kf4 {[%clk 0:00:35.6]} 94.
Kf1 {[%clk 0:00:21.8]} 94... Kg3 {[%clk 0:00:36.1]} 95. Kg1 {[%clk 0:00:22.1]}
95... Kg4 {[%clk 0:00:36.9]} 96. Kf2 {[%clk 0:00:22.3]} 96... Kf4 {[%clk
0:00:37.7]} 97. Kf1 {[%clk 0:00:22.6]} 97... Ke4 {[%clk 0:00:37.9]} 98. Kf2
{[%clk 0:00:22.9]} 98... Kf4 {[%clk 0:00:38.6]} 1/2-1/2

[Event "Late-Titled-Tuesday-Blitz-January-30-2024"]
[Site "Chess.com"]
[Date "2024.01.30"]
[Round "1"]
[White "Mazetovic"]
[Black "C_K_G"]
[Result "1-0"]
[WhiteElo "2587"]
[BlackElo "2153"]
[TimeControl "180+1"]
[EndTime "14:09:31 PST"]
[Termination "Mazetovic won by resignation"]

1. e4 {[%clk 0:02:54]} 1... c5 {[%clk 0:02:59.2]} 2. Nf3 {[%clk 0:02:46.7]} 2...
d6 {[%clk 0:02:59.5]} 3. Bb5+ {[%clk 0:02:42.2]} 3... Bd7 {[%clk 0:02:59]} 4.
Bxd7+ {[%clk 0:02:41.3]} 4... Qxd7 {[%clk 0:02:59.6]} 5. O-O {[%clk 0:02:40]}
5... Nc6 {[%clk 0:02:58.2]} 6. Re1 {[%clk 0:02:37.5]} 6... Nf6 {[%clk
0:02:56.1]} 7. c3 {[%clk 0:02:37]} 7... e6 {[%clk 0:02:50]} 8. d4 {[%clk
0:02:36.6]} 8... cxd4 {[%clk 0:02:49.6]} 9. cxd4 {[%clk 0:02:37.5]} 9... Be7
{[%clk 0:02:49.8]} 10. d5 {[%clk 0:02:36.2]} 10... Ne5 {[%clk 0:02:49.3]} 11.
dxe6 {[%clk 0:02:21.5]} 11... Nxf3+ {[%clk 0:02:48.6]} 12. Qxf3 {[%clk
0:02:20.3]} 12... fxe6 {[%clk 0:02:47.7]} 13. Nc3 {[%clk 0:01:49.5]} 13... O-O
{[%clk 0:02:47.6]} 14. Qg3 {[%clk 0:01:25]} 14... Nh5 {[%clk 0:02:37.4]} 15. Qh3
{[%clk 0:01:21.9]} 15... Nf4 {[%clk 0:02:25.7]} 16. Bxf4 {[%clk 0:01:18.3]}
16... Rxf4 {[%clk 0:02:26.6]} 17. Rad1 {[%clk 0:01:14.1]} 17... Raf8 {[%clk
0:02:16.3]} 18. Re2 {[%clk 0:01:13.1]} 18... Qc8 {[%clk 0:02:06.7]} 19. a3
{[%clk 0:00:57]} 19... a6 {[%clk 0:01:54]} 20. Rd3 {[%clk 0:00:55.1]} 20... R8f6
{[%clk 0:01:48.6]} 21. e5 {[%clk 0:00:49.8]} 21... dxe5 {[%clk 0:01:43.6]} 22.
Rd1 {[%clk 0:00:28.8]} 22... Bc5 {[%clk 0:01:37.4]} 23. Ne4 {[%clk 0:00:26.9]}
23... Rh6 {[%clk 0:01:11]} 24. Qc3 {[%clk 0:00:23.8]} 24... b6 {[%clk
0:00:50.9]} 25. Qxe5 {[%clk 0:00:21.9]} 25... Rf5 {[%clk 0:00:32.4]} 26. Qc3
{[%clk 0:00:20.6]} 26... Qf8 {[%clk 0:00:28.5]} 27. b4 {[%clk 0:00:16.8]} 27...
Be7 {[%clk 0:00:16]} 28. Rc1 {[%clk 0:00:16.3]} 28... Rfh5 {[%clk 0:00:13.9]}
29. h3 {[%clk 0:00:14.2]} 29... Rg6 {[%clk 0:00:13.3]} 30. Kh1 {[%clk 0:00:10]}
30... h6 {[%clk 0:00:12.1]} 31. Qc8 {[%clk 0:00:09.5]} 31... Kh7 {[%clk
0:00:11.1]} 32. Qxf8 {[%clk 0:00:09.3]} 32... Bxf8 {[%clk 0:00:12]} 33. Rc6
{[%clk 0:00:08.7]} 33... Re5 {[%clk 0:00:09.7]} 34. Rxb6 {[%clk 0:00:07.5]}
34... Be7 {[%clk 0:00:07.2]} 35. Rxa6 {[%clk 0:00:07.2]} 35... Bh4 {[%clk
0:00:05.4]} 36. g3 {[%clk 0:00:07.2]} 36... Be7 {[%clk 0:00:05.2]} 37. Kg2
{[%clk 0:00:07]} 37... Bf8 {[%clk 0:00:05.1]} 38. Ra5 {[%clk 0:00:07]} 38...
Rxa5 {[%clk 0:00:04.4]} 39. bxa5 {[%clk 0:00:07.4]} 39... Bxa3 {[%clk
0:00:04.9]} 40. a6 {[%clk 0:00:07.6]} 40... e5 {[%clk 0:00:05.6]} 41. a7 {[%clk
0:00:05.6]} 41... Ra6 {[%clk 0:00:06.1]} 42. Nc3 {[%clk 0:00:04.1]} 42... Rxa7
{[%clk 0:00:05.1]} 43. Nb5 {[%clk 0:00:04]} 43... Ra5 {[%clk 0:00:05.1]} 44.
Nxa3 {[%clk 0:00:04.4]} 44... Rxa3 {[%clk 0:00:05.1]} 45. Rxe5 {[%clk
0:00:05.1]} 45... Ra2 {[%clk 0:00:05.6]} 46. Re7 {[%clk 0:00:05.5]} 46... Ra6
{[%clk 0:00:05.8]} 47. g4 {[%clk 0:00:05.9]} 47... Ra5 {[%clk 0:00:05.7]} 48. f3
{[%clk 0:00:06.2]} 48... Ra6 {[%clk 0:00:06.2]} 49. Kg3 {[%clk 0:00:06.7]} 49...
Ra5 {[%clk 0:00:06.7]} 50. h4 {[%clk 0:00:07.4]} 50... Ra6 {[%clk 0:00:07.1]}
51. h5 {[%clk 0:00:07.9]} 51... Kg8 {[%clk 0:00:07]} 52. f4 {[%clk 0:00:08.2]}
52... Ra3+ {[%clk 0:00:06.8]} 53. Kf2 {[%clk 0:00:07.4]} 53... Rb3 {[%clk
0:00:06.4]} 54. Re3 {[%clk 0:00:06.7]} 54... Rb1 {[%clk 0:00:05.7]} 55. Kf3
{[%clk 0:00:06.9]} 55... Rf1+ {[%clk 0:00:05.4]} 56. Ke4 {[%clk 0:00:07.1]}
56... Rg1 {[%clk 0:00:06]} 57. Kf5 {[%clk 0:00:07.3]} 57... Ra1 {[%clk
0:00:06.5]} 58. Re6 {[%clk 0:00:04.6]} 58... Ra5+ {[%clk 0:00:06.2]} 59. Re5
{[%clk 0:00:04.8]} 59... Ra6 {[%clk 0:00:05.6]} 60. g5 {[%clk 0:00:05.2]} 60...
hxg5 {[%clk 0:00:05.2]} 61. fxg5 {[%clk 0:00:05.8]} 61... Kh7 {[%clk 0:00:05.5]}
62. Rd5 {[%clk 0:00:03.9]} 62... Rb6 {[%clk 0:00:05]} 63. Kf4 {[%clk 0:00:02.2]}
63... Ra6 {[%clk 0:00:05]} 64. Kf5 {[%clk 0:00:02.7]} 64... Rb6 {[%clk
0:00:05.1]} 65. Re5 {[%clk 0:00:03.3]} 65... Ra6 {[%clk 0:00:05.3]} 66. Re6
{[%clk 0:00:04]} 66... Ra5+ {[%clk 0:00:05.5]} 67. Kf4 {[%clk 0:00:04.5]} 67...
Ra4+ {[%clk 0:00:05.7]} 68. Re4 {[%clk 0:00:04.6]} 68... Ra5 {[%clk 0:00:05.8]}
69. Kg4 {[%clk 0:00:05]} 69... Ra6 {[%clk 0:00:05.9]} 70. Re8 {[%clk 0:00:04.9]}
70... g6 {[%clk 0:00:02.1]} 71. Re7+ {[%clk 0:00:04.8]} 71... Kg8 {[%clk
0:00:01.8]} 72. h6 {[%clk 0:00:05.6]} 72... Ra4+ {[%clk 0:00:01.7]} 73. Kf3
{[%clk 0:00:06.1]} 73... Rb4 {[%clk 0:00:01.8]} 74. Rg7+ {[%clk 0:00:05.7]}
74... Kh8 {[%clk 0:00:02.3]} 75. Rxg6 {[%clk 0:00:06.4]} 75... Kh7 {[%clk
0:00:02.8]} 76. Rg7+ {[%clk 0:00:06.1]} 76... Kh8 {[%clk 0:00:02.9]} 77. Re7
{[%clk 0:00:06.7]} 77... Ra4 {[%clk 0:00:02.3]} 78. g6 {[%clk 0:00:07.2]} 78...
Ra8 {[%clk 0:00:02.2]} 79. Kf4 {[%clk 0:00:07.8]} 79... Rc8 {[%clk 0:00:01.7]}
80. Kf5 {[%clk 0:00:08.3]} 80... Ra8 {[%clk 0:00:02.4]} 81. Kf6 {[%clk
0:00:08.6]} 81... Rb8 {[%clk 0:00:03]} 82. Kf7 {[%clk 0:00:08.2]} 82... Rg8
{[%clk 0:00:02.2]} 83. Re8 {[%clk 0:00:08]} 83... Rxe8 {[%clk 0:00:01.8]} 84.
Kxe8 {[%clk 0:00:08.3]} 84... Kg8 {[%clk 0:00:02.7]} 85. Ke7 {[%clk 0:00:08.3]}
85... Kh8 {[%clk 0:00:03.5]} 86. Kf6 {[%clk 0:00:06.7]} 86... Kg8 {[%clk
0:00:04.4]} 87. g7 {[%clk 0:00:07.4]} 87... Kh7 {[%clk 0:00:03.9]} 88. Kf7
{[%clk 0:00:08]} 88... Kxh6 {[%clk 0:00:04.8]} 89. g8=Q {[%clk 0:00:08.5]} 89...
Kh5 {[%clk 0:00:05.7]} 90. Kf6 {[%clk 0:00:08.9]} 1-0